[Event "*** Titled Tuesday Blitz"]
[Site "Chess.com"]
[Date "2018.06.05"]
[Round "2"]
[White "PrinceMurad09"]
[Black "ruvat"]
[Result "1-0"]
[WhiteElo "2410"]
[BlackElo "2278"]
[TimeControl "180+2"]
[EndTime "13:21:46 PDT"]
[Termination "PrinceMurad09 won by resignation"]

1. e4 {[%clk 0:02:59.5]} 1... d6 {[%clk 0:03:00.2]} 2. d4 {[%clk 0:03:00.5]}
2... Nf6 {[%clk 0:03:01.1]} 3. Nc3 {[%clk 0:03:01.7]} 3... g6 {[%clk 0:03:02]}
4. Be3 {[%clk 0:03:02.8]} 4... Bg7 {[%clk 0:03:02.4]} 5. f3 {[%clk 0:03:04]}
5... c6 {[%clk 0:03:03]} 6. Qd2 {[%clk 0:03:05.4]} 6... b5 {[%clk 0:03:04.1]} 7.
g4 {[%clk 0:03:06.8]} 7... h5 {[%clk 0:03:02.8]} 8. g5 {[%clk 0:03:07.9]} 8...
Nfd7 {[%clk 0:03:03.6]} 9. h4 {[%clk 0:03:09.8]} 9... b4 {[%clk 0:02:56.5]} 10.
Nce2 {[%clk 0:03:10.5]} 10... c5 {[%clk 0:02:57.3]} 11. O-O-O {[%clk 0:03:10.6]}
11... Qa5 {[%clk 0:02:54.7]} 12. Kb1 {[%clk 0:03:11.6]} 12... Nc6 {[%clk
0:02:37.5]} 13. dxc5 {[%clk 0:03:11.7]} 13... Nxc5 {[%clk 0:02:34.3]} 14. Nd4
{[%clk 0:03:12.6]} 14... Bd7 {[%clk 0:01:59.8]} 15. Nb3 {[%clk 0:03:09.8]} 15...
Nxb3 {[%clk 0:01:58.2]} 16. axb3 {[%clk 0:03:10.6]} 16... O-O {[%clk 0:01:52.8]}
17. Ne2 {[%clk 0:03:02.5]} 17... Qe5 {[%clk 0:01:36.4]} 18. Nd4 {[%clk
0:03:00.5]} 18... Rfc8 {[%clk 0:01:27.7]} 19. Bc4 {[%clk 0:02:56.7]} 19... Nxd4
{[%clk 0:01:26.5]} 20. Bxd4 {[%clk 0:02:57.3]} 20... Qxd4 {[%clk 0:01:27.6]} 21.
Qxd4 {[%clk 0:02:58.2]} 21... Bxd4 {[%clk 0:01:29]} 22. Rxd4 {[%clk 0:03:00.1]}
22... a5 {[%clk 0:01:29.3]} 23. f4 {[%clk 0:02:59.3]} 23... Rc5 {[%clk
0:01:29.1]} 24. Rf1 {[%clk 0:02:56.2]} 24... Ra7 {[%clk 0:01:22.9]} 25. f5
{[%clk 0:02:57]} 25... gxf5 {[%clk 0:01:16.2]} 26. g6 {[%clk 0:02:55.8]} 26...
fxe4 {[%clk 0:01:09.1]} 27. Rxf7 {[%clk 0:02:33.3]} 27... Rxc4 {[%clk
0:00:43.8]} 28. Rxc4 {[%clk 0:02:32.6]} 1-0

[Event "*** Titled Tuesday Blitz"]
[Site "Chess.com"]
[Date "2018.06.05"]
[Round "2"]
[White "ENEASZ"]
[Black "petrpalachev"]
[Result "1/2-1/2"]
[WhiteElo "2515"]
[BlackElo "2689"]
[TimeControl "180+2"]
[EndTime "13:21:51 PDT"]
[Termination "Game drawn by agreement"]

1. e4 {[%clk 0:03:01.9]} 1... c5 {[%clk 0:03:00.7]} 2. c3 {[%clk 0:03:02.5]}
2... d5 {[%clk 0:03:00.4]} 3. exd5 {[%clk 0:03:04.4]} 3... Qxd5 {[%clk
0:03:02.1]} 4. d4 {[%clk 0:03:05.6]} 4... Nc6 {[%clk 0:03:00.5]} 5. Nf3 {[%clk
0:03:06.2]} 5... Bg4 {[%clk 0:03:01.2]} 6. Be2 {[%clk 0:03:06.9]} 6... cxd4
{[%clk 0:02:57.9]} 7. cxd4 {[%clk 0:03:08.8]} 7... e6 {[%clk 0:02:59.1]} 8. O-O
{[%clk 0:03:09.6]} 8... Nf6 {[%clk 0:02:58.8]} 9. Nc3 {[%clk 0:03:10.8]} 9...
Qd6 {[%clk 0:02:58.8]} 10. Be3 {[%clk 0:03:09.6]} 10... Be7 {[%clk 0:02:59.4]}
11. h3 {[%clk 0:03:10.7]} 11... Bh5 {[%clk 0:03:00]} 12. Qb3 {[%clk 0:03:11.8]}
12... Qb4 {[%clk 0:03:00.4]} 13. Rfd1 {[%clk 0:03:05.1]} 13... O-O {[%clk
0:03:00.5]} 14. d5 {[%clk 0:03:01.8]} 14... Qxb3 {[%clk 0:02:50.5]} 15. axb3
{[%clk 0:03:03.7]} 15... exd5 {[%clk 0:02:50.6]} 16. Nxd5 {[%clk 0:03:05.6]}
16... Nxd5 {[%clk 0:01:48.5]} 17. Rxd5 {[%clk 0:03:07.5]} 17... Bxf3 {[%clk
0:01:50.4]} 18. Bxf3 {[%clk 0:03:08]} 18... Rad8 {[%clk 0:01:52.3]} 19. Rb5
{[%clk 0:02:59.3]} 19... Rd7 {[%clk 0:01:48.6]} 20. Bxc6 {[%clk 0:02:54.2]}
20... bxc6 {[%clk 0:01:48.9]} 21. Rba5 {[%clk 0:02:56.1]} 21... Ra8 {[%clk
0:01:45.2]} 22. Ra6 {[%clk 0:02:41]} 22... c5 {[%clk 0:01:44.1]} 23. Rc6 {[%clk
0:02:35.6]} 23... Rb8 {[%clk 0:01:40.4]} 24. Bxc5 {[%clk 0:02:31]} 24... Bxc5
{[%clk 0:01:42.3]} 25. Rxc5 {[%clk 0:02:32.9]} 25... g6 {[%clk 0:01:40.9]} 26.
Rc3 {[%clk 0:02:21.7]} 26... Re7 {[%clk 0:01:42.3]} 27. Kf1 {[%clk 0:02:19.7]}
27... Rd8 {[%clk 0:01:40.6]} 28. Re1 {[%clk 0:02:19.4]} 28... Rb7 {[%clk
0:01:40.9]} 29. g3 {[%clk 0:02:07.4]} 29... Kg7 {[%clk 0:01:41.8]} 30. Re2
{[%clk 0:02:05.6]} 30... Rd1+ {[%clk 0:01:41.9]} 31. Kg2 {[%clk 0:02:05.9]}
31... Rbd7 {[%clk 0:01:42.6]} 32. g4 {[%clk 0:02:04.3]} 32... R1d2 {[%clk
0:01:41]} 33. Rc2 {[%clk 0:01:51.4]} 33... Rxe2 {[%clk 0:01:41]} 34. Rxe2 {[%clk
0:01:51.9]} 34... Rd3 {[%clk 0:01:42.5]} 35. Re7 {[%clk 0:01:31.3]} 35... Rxb3
{[%clk 0:01:42.1]} 36. Rxa7 {[%clk 0:01:32.3]} 36... Rxb2 {[%clk 0:01:43.6]}
1/2-1/2

[Event "*** Titled Tuesday Blitz"]
[Site "Chess.com"]
[Date "2018.06.05"]
[Round "2"]
[White "GABUZYAN_CHESSMOOD"]
[Black "Shant_Sargsyan"]
[Result "0-1"]
[WhiteElo "2595"]
[BlackElo "2904"]
[TimeControl "180+2"]
[EndTime "13:21:52 PDT"]
[Termination "Shant_Sargsyan won by resignation"]

1. Nf3 {[%clk 0:02:51.7]} 1... d5 {[%clk 0:03:00]} 2. g3 {[%clk 0:02:53.2]} 2...
g6 {[%clk 0:03:00.9]} 3. Bg2 {[%clk 0:02:55.1]} 3... Bg7 {[%clk 0:03:02.4]} 4.
O-O {[%clk 0:02:56.7]} 4... e5 {[%clk 0:03:03.4]} 5. d3 {[%clk 0:02:57.7]} 5...
Ne7 {[%clk 0:03:04.3]} 6. e4 {[%clk 0:02:59]} 6... O-O {[%clk 0:03:01.8]} 7.
exd5 {[%clk 0:02:58.6]} 7... Nxd5 {[%clk 0:03:03.7]} 8. Re1 {[%clk 0:03:00]}
8... Nc6 {[%clk 0:03:04.8]} 9. Nbd2 {[%clk 0:03:01.3]} 9... Re8 {[%clk
0:03:04.1]} 10. Nc4 {[%clk 0:03:02.5]} 10... h6 {[%clk 0:03:02.7]} 11. c3 {[%clk
0:03:02.9]} 11... Nb6 {[%clk 0:02:59.1]} 12. Be3 {[%clk 0:03:00.3]} 12... Nxc4
{[%clk 0:02:59.4]} 13. dxc4 {[%clk 0:03:01.3]} 13... Qxd1 {[%clk 0:02:57.9]} 14.
Raxd1 {[%clk 0:03:03.2]} 14... Be6 {[%clk 0:02:59.2]} 15. Nd2 {[%clk 0:03:03.3]}
15... f5 {[%clk 0:02:56.6]} 16. Bxc6 {[%clk 0:03:04]} 16... bxc6 {[%clk
0:02:58.5]} 17. f4 {[%clk 0:03:05.2]} 17... e4 {[%clk 0:02:57.4]} 18. Bd4 {[%clk
0:03:04.3]} 18... Bf8 {[%clk 0:02:57.9]} 19. b3 {[%clk 0:03:05.1]} 19... a5
{[%clk 0:02:59.1]} 20. a4 {[%clk 0:03:01.3]} 20... Rab8 {[%clk 0:02:52.9]} 21.
Rb1 {[%clk 0:02:48.6]} 21... Red8 {[%clk 0:02:53.1]} 22. Nf1 {[%clk 0:02:45.9]}
22... c5 {[%clk 0:02:49.4]} 23. Be5 {[%clk 0:02:46.8]} 23... Bd6 {[%clk
0:02:50.3]} 24. Bxd6 {[%clk 0:02:40.4]} 24... Rxd6 {[%clk 0:02:51]} 25. Kf2
{[%clk 0:02:40.2]} 25... Rd3 {[%clk 0:02:45.5]} 26. Rec1 {[%clk 0:02:40.6]}
26... Kf7 {[%clk 0:02:41.6]} 27. Ke2 {[%clk 0:02:39.8]} 27... g5 {[%clk
0:02:39.8]} 28. Ne3 {[%clk 0:02:39.3]} 28... Kf6 {[%clk 0:02:39.2]} 29. Rf1
{[%clk 0:02:36.1]} 29... Rxc3 {[%clk 0:02:27.4]} 30. fxg5+ {[%clk 0:02:36.8]}
30... Kxg5 {[%clk 0:02:24.5]} 31. Rfd1 {[%clk 0:02:35.7]} 31... Rbxb3 {[%clk
0:02:21.1]} 32. Rxb3 {[%clk 0:02:36.3]} 32... Rxb3 {[%clk 0:02:23]} 33. Rd8
{[%clk 0:02:37.8]} 33... Rb4 {[%clk 0:02:20.3]} 34. Ra8 {[%clk 0:02:26]} 34...
Rxa4 {[%clk 0:02:17.8]} 35. Kd2 {[%clk 0:02:19.7]} 35... Ra2+ {[%clk 0:02:14.9]}
36. Kc3 {[%clk 0:02:20.7]} 36... Re2 {[%clk 0:02:04.2]} 37. Nc2 {[%clk
0:02:13.5]} 37... Rxh2 {[%clk 0:02:01.1]} 38. Rxa5 {[%clk 0:02:14.4]} 38... Rg2
{[%clk 0:01:53.4]} 39. Rxc5 {[%clk 0:02:14.5]} 39... Rxg3+ {[%clk 0:01:54.9]}
40. Kd4 {[%clk 0:02:15.9]} 40... Kf4 {[%clk 0:01:38.5]} 41. Rxc7 {[%clk
0:02:12.7]} 41... Rd3+ {[%clk 0:01:38.9]} 42. Kc5 {[%clk 0:02:13.8]} 42... Rc3
{[%clk 0:01:40]} 43. Nd4 {[%clk 0:02:11.5]} 43... Rxc4+ {[%clk 0:01:39.9]} 44.
Kd6 {[%clk 0:02:12.2]} 44... Rxd4+ {[%clk 0:01:41.4]} 0-1

[Event "*** Titled Tuesday Blitz"]
[Site "Chess.com"]
[Date "2018.06.05"]
[Round "2"]
[White "Xeniya2005"]
[Black "aa175"]
[Result "0-1"]
[WhiteElo "1905"]
[BlackElo "1868"]
[TimeControl "180+2"]
[EndTime "13:22:10 PDT"]
[Termination "aa175 won by resignation"]

1. e4 {[%clk 0:03:01.9]} 1... e5 {[%clk 0:02:55.7]} 2. Nf3 {[%clk 0:03:02.1]}
2... f5 {[%clk 0:02:53]} 3. Nxe5 {[%clk 0:03:00.8]} 3... Nc6 {[%clk 0:02:54.1]}
4. Nxc6 {[%clk 0:03:00.9]} 4... dxc6 {[%clk 0:02:53.4]} 5. exf5 {[%clk
0:03:01.4]} 5... Bxf5 {[%clk 0:02:55.3]} 6. Nc3 {[%clk 0:03:01.6]} 6... Nf6
{[%clk 0:02:54.9]} 7. Be2 {[%clk 0:03:02.1]} 7... Bd6 {[%clk 0:02:55]} 8. O-O
{[%clk 0:03:02.6]} 8... h5 {[%clk 0:02:55.6]} 9. d3 {[%clk 0:03:02.7]} 9... Ng4
{[%clk 0:02:40.2]} 10. h3 {[%clk 0:02:45.9]} 10... Qh4 {[%clk 0:02:29.7]} 11.
Bd2 {[%clk 0:02:22.6]} 11... O-O-O {[%clk 0:02:16.8]} 12. Qc1 {[%clk 0:02:16]}
12... Bc5 {[%clk 0:01:46.4]} 13. Bxg4 {[%clk 0:01:37.3]} 13... hxg4 {[%clk
0:01:42.2]} 14. Bg5 {[%clk 0:01:37.6]} 14... Qg3 {[%clk 0:01:40.2]} 15. h4
{[%clk 0:01:32.6]} 15... Rxh4 {[%clk 0:01:29]} 16. Bxh4 {[%clk 0:01:32.2]} 16...
Qxh4 {[%clk 0:01:30.9]} 17. Qf4 {[%clk 0:01:01.5]} 17... Rh8 {[%clk 0:01:06.4]}
18. Qxf5+ {[%clk 0:00:54]} 18... Kb8 {[%clk 0:01:06.3]} 0-1

[Event "*** Titled Tuesday Blitz"]
[Site "Chess.com"]
[Date "2018.06.05"]
[Round "2"]
[White "olksuna"]
[Black "bait_or_mate"]
[Result "1-0"]
[WhiteElo "2385"]
[BlackElo "2416"]
[TimeControl "180+2"]
[EndTime "13:22:13 PDT"]
[Termination "olksuna won by resignation"]

1. e4 {[%clk 0:03:01.9]} 1... c5 {[%clk 0:02:59.9]} 2. Nf3 {[%clk 0:03:02.6]}
2... e6 {[%clk 0:03:00.8]} 3. d3 {[%clk 0:03:00.4]} 3... d5 {[%clk 0:03:00.2]}
4. Qe2 {[%clk 0:03:01.1]} 4... dxe4 {[%clk 0:02:57]} 5. dxe4 {[%clk 0:03:01.9]}
5... Nc6 {[%clk 0:02:56.9]} 6. c3 {[%clk 0:03:02.3]} 6... Nf6 {[%clk 0:02:52.2]}
7. g3 {[%clk 0:03:03.6]} 7... Be7 {[%clk 0:02:52.7]} 8. Bg2 {[%clk 0:03:05]}
8... b6 {[%clk 0:02:50.9]} 9. O-O {[%clk 0:03:05]} 9... Bb7 {[%clk 0:02:49.9]}
10. Nbd2 {[%clk 0:03:00.7]} 10... O-O {[%clk 0:02:49.9]} 11. e5 {[%clk
0:02:57.2]} 11... Nd5 {[%clk 0:02:50]} 12. a4 {[%clk 0:02:53.8]} 12... a5 {[%clk
0:02:45.5]} 13. Nc4 {[%clk 0:02:50.7]} 13... Ba6 {[%clk 0:02:45.4]} 14. Re1
{[%clk 0:02:49.7]} 14... Qc7 {[%clk 0:02:44.7]} 15. Nfd2 {[%clk 0:02:46.4]}
15... Rfd8 {[%clk 0:02:44.8]} 16. h4 {[%clk 0:02:45.8]} 16... b5 {[%clk
0:02:39.2]} 17. axb5 {[%clk 0:02:45.3]} 17... Bxb5 {[%clk 0:02:41.1]} 18. Qg4
{[%clk 0:02:43.2]} 18... Bf8 {[%clk 0:02:28.7]} 19. h5 {[%clk 0:02:40.2]} 19...
h6 {[%clk 0:02:29.3]} 20. Be4 {[%clk 0:02:39.1]} 20... Kh8 {[%clk 0:02:19.7]}
21. Bc2 {[%clk 0:02:38.6]} 21... Nce7 {[%clk 0:02:03.8]} 22. Qe4 {[%clk
0:02:29.3]} 22... g6 {[%clk 0:02:04.4]} 23. hxg6 {[%clk 0:02:25.5]} 23... Nxg6
{[%clk 0:01:59]} 24. Nf3 {[%clk 0:02:21.5]} 24... Nde7 {[%clk 0:01:46.2]} 25.
Qg4 {[%clk 0:02:17.7]} 25... Bxc4 {[%clk 0:01:19.6]} 26. Qxc4 {[%clk 0:02:17.5]}
26... Bg7 {[%clk 0:01:21.2]} 27. Qg4 {[%clk 0:02:11.2]} 27... Rg8 {[%clk
0:01:15.7]} 28. Qh5 {[%clk 0:02:10.4]} 28... Nf5 {[%clk 0:00:35.4]} 29. Bxf5
{[%clk 0:02:08.3]} 29... exf5 {[%clk 0:00:37.3]} 30. Bxh6 {[%clk 0:02:08.1]} 1-0

[Event "*** Titled Tuesday Blitz"]
[Site "Chess.com"]
[Date "2018.06.05"]
[Round "2"]
[White "KRASAVCHIK2002"]
[Black "LordIron"]
[Result "1-0"]
[WhiteElo "2220"]
[BlackElo "2165"]
[TimeControl "180+2"]
[EndTime "13:22:19 PDT"]
[Termination "KRASAVCHIK2002 won by resignation"]

1. e4 {[%clk 0:03:01.9]} 1... c5 {[%clk 0:03:00.6]} 2. Nf3 {[%clk 0:03:02.9]}
2... d6 {[%clk 0:03:02.1]} 3. d4 {[%clk 0:03:03.7]} 3... cxd4 {[%clk 0:03:04]}
4. Nxd4 {[%clk 0:03:04.7]} 4... Nf6 {[%clk 0:03:05.6]} 5. Nc3 {[%clk 0:03:05.9]}
5... a6 {[%clk 0:03:07.2]} 6. Be3 {[%clk 0:03:06.9]} 6... e5 {[%clk 0:03:07.7]}
7. Nb3 {[%clk 0:03:07.1]} 7... Be6 {[%clk 0:03:09.3]} 8. f3 {[%clk 0:03:08]}
8... Nbd7 {[%clk 0:03:10.7]} 9. Qd2 {[%clk 0:03:09]} 9... b5 {[%clk 0:03:12.2]}
10. O-O-O {[%clk 0:03:05.8]} 10... Nb6 {[%clk 0:03:13.4]} 11. g4 {[%clk
0:02:59.2]} 11... Be7 {[%clk 0:03:11.9]} 12. g5 {[%clk 0:02:48.2]} 12... Nfd7
{[%clk 0:03:12.6]} 13. h4 {[%clk 0:02:47.9]} 13... Nc4 {[%clk 0:03:06.9]} 14.
Bxc4 {[%clk 0:02:45.9]} 14... bxc4 {[%clk 0:03:08.8]} 15. Na1 {[%clk 0:02:46]}
15... Nb6 {[%clk 0:02:33.3]} 16. h5 {[%clk 0:02:33.1]} 16... Qc7 {[%clk
0:02:27.5]} 17. g6 {[%clk 0:02:29.4]} 17... fxg6 {[%clk 0:02:24.9]} 18. hxg6
{[%clk 0:02:30.4]} 18... h6 {[%clk 0:02:23.5]} 19. Bxb6 {[%clk 0:02:13.8]} 19...
Qxb6 {[%clk 0:02:23.7]} 20. Nd5 {[%clk 0:02:14.6]} 20... Qc6 {[%clk 0:02:10.2]}
21. Nxe7 {[%clk 0:02:06.8]} 21... Kxe7 {[%clk 0:02:12.1]} 22. c3 {[%clk
0:02:06.8]} 22... Rhd8 {[%clk 0:02:00.1]} 23. Nc2 {[%clk 0:02:06.1]} 23... d5
{[%clk 0:01:43.8]} 24. Nb4 {[%clk 0:02:03.1]} 24... Qb5 {[%clk 0:01:36.9]} 25.
exd5 {[%clk 0:01:59.8]} 25... Bf5 {[%clk 0:01:34.5]} 26. Nc6+ {[%clk 0:01:20.5]}
26... Kf8 {[%clk 0:01:32.6]} 27. Nxd8 {[%clk 0:00:53.7]} 27... Rxd8 {[%clk
0:01:34.5]} 1-0

[Event "*** Titled Tuesday Blitz"]
[Site "Chess.com"]
[Date "2018.06.05"]
[Round "2"]
[White "Angulo07"]
[Black "Haykos"]
[Result "1-0"]
[WhiteElo "2376"]
[BlackElo "2520"]
[TimeControl "180+2"]
[EndTime "13:22:32 PDT"]
[Termination "Angulo07 won by resignation"]

1. Nc3 {[%clk 0:03:01.9]} 1... g6 {[%clk 0:02:58.9]} 2. e4 {[%clk 0:03:03.3]}
2... Bg7 {[%clk 0:02:59.7]} 3. d4 {[%clk 0:03:02.4]} 3... c6 {[%clk 0:03:00.4]}
4. Nf3 {[%clk 0:02:58.7]} 4... d5 {[%clk 0:02:56.6]} 5. Bd3 {[%clk 0:02:56.5]}
5... dxe4 {[%clk 0:02:48.9]} 6. Nxe4 {[%clk 0:02:55.1]} 6... Bg4 {[%clk
0:02:28.7]} 7. c3 {[%clk 0:02:51.6]} 7... Nd7 {[%clk 0:02:28.2]} 8. Qe2 {[%clk
0:02:49.2]} 8... Qc7 {[%clk 0:02:25.2]} 9. O-O {[%clk 0:02:44.7]} 9... Ngf6
{[%clk 0:02:25.7]} 10. Re1 {[%clk 0:02:41.8]} 10... O-O {[%clk 0:02:12.8]} 11.
h3 {[%clk 0:02:40.5]} 11... Bxf3 {[%clk 0:01:59.5]} 12. Qxf3 {[%clk 0:02:42.4]}
12... Nxe4 {[%clk 0:01:50.7]} 13. Bxe4 {[%clk 0:02:37.7]} 13... e5 {[%clk
0:01:52]} 14. dxe5 {[%clk 0:02:32.1]} 14... Nxe5 {[%clk 0:01:52.9]} 15. Qe2
{[%clk 0:02:33.8]} 15... Rfe8 {[%clk 0:01:53.4]} 16. Bf4 {[%clk 0:02:29]} 16...
Qb6 {[%clk 0:01:54.6]} 17. Rad1 {[%clk 0:02:25.8]} 17... Re6 {[%clk 0:01:16]}
18. Qc2 {[%clk 0:02:08.5]} 18... Rae8 {[%clk 0:01:17.2]} 19. Re2 {[%clk
0:02:02.5]} 19... f5 {[%clk 0:01:17.7]} 20. Bd3 {[%clk 0:02:00.2]} 20... Nxd3
{[%clk 0:01:17.4]} 21. Rxe6 {[%clk 0:01:58.1]} 21... Rxe6 {[%clk 0:01:18.5]} 22.
Rxd3 {[%clk 0:01:46.3]} 22... Re4 {[%clk 0:00:59.6]} 23. Be3 {[%clk 0:01:43.1]}
23... Qc7 {[%clk 0:01:00.5]} 24. Qb3+ {[%clk 0:01:41.5]} 24... Qf7 {[%clk
0:00:55.6]} 25. Rd8+ {[%clk 0:01:39.1]} 25... Bf8 {[%clk 0:00:55.9]} 26. Bh6
{[%clk 0:01:36]} 1-0

[Event "*** Titled Tuesday Blitz"]
[Site "Chess.com"]
[Date "2018.06.05"]
[Round "2"]
[White "GM_Huschenbeth"]
[Black "lionheart95"]
[Result "0-1"]
[WhiteElo "2447"]
[BlackElo "2368"]
[TimeControl "180+2"]
[EndTime "13:22:39 PDT"]
[Termination "lionheart95 won by resignation"]

1. e4 {[%clk 0:03:01.9]} 1... e5 {[%clk 0:02:58.6]} 2. Nf3 {[%clk 0:03:02.3]}
2... Nc6 {[%clk 0:02:59.6]} 3. Bc4 {[%clk 0:03:03.3]} 3... Nf6 {[%clk
0:02:59.5]} 4. d4 {[%clk 0:03:01.9]} 4... exd4 {[%clk 0:02:55.7]} 5. e5 {[%clk
0:03:03.8]} 5... d5 {[%clk 0:02:56.3]} 6. Bb5 {[%clk 0:03:05.2]} 6... Ne4 {[%clk
0:02:57.1]} 7. Nxd4 {[%clk 0:03:06.2]} 7... Bd7 {[%clk 0:02:56.9]} 8. Bxc6
{[%clk 0:03:07.7]} 8... bxc6 {[%clk 0:02:58.5]} 9. O-O {[%clk 0:03:09.3]} 9...
Be7 {[%clk 0:02:57.4]} 10. f3 {[%clk 0:03:09.5]} 10... Ng5 {[%clk 0:02:58]} 11.
f4 {[%clk 0:03:10.8]} 11... Ne4 {[%clk 0:02:59]} 12. Nc3 {[%clk 0:03:07.1]}
12... Nxc3 {[%clk 0:02:58.3]} 13. bxc3 {[%clk 0:03:09]} 13... O-O {[%clk
0:02:59.1]} 14. f5 {[%clk 0:03:09]} 14... c5 {[%clk 0:03:00.1]} 15. Ne2 {[%clk
0:03:09.8]} 15... c6 {[%clk 0:02:53.3]} 16. Ng3 {[%clk 0:03:06.2]} 16... Re8
{[%clk 0:02:53.3]} 17. f6 {[%clk 0:02:43.8]} 17... Bf8 {[%clk 0:02:54.2]} 18.
fxg7 {[%clk 0:02:13.8]} 18... Bxg7 {[%clk 0:02:54.6]} 19. Qh5 {[%clk 0:02:15.3]}
19... Qe7 {[%clk 0:02:45.3]} 20. Bg5 {[%clk 0:02:12.9]} 20... Qxe5 {[%clk
0:02:45.3]} 21. Qxf7+ {[%clk 0:01:33.5]} 21... Kh8 {[%clk 0:02:45.5]} 22. Bf6
{[%clk 0:01:13.4]} 22... Bxf6 {[%clk 0:02:42.1]} 23. Qxf6+ {[%clk 0:01:14.4]}
23... Qxf6 {[%clk 0:02:42.1]} 24. Rxf6 {[%clk 0:01:16.3]} 24... Rf8 {[%clk
0:02:36.7]} 25. Rd6 {[%clk 0:01:14.9]} 25... Rf7 {[%clk 0:02:37.4]} 26. Rf1
{[%clk 0:01:09.2]} 26... Rxf1+ {[%clk 0:02:28.1]} 27. Kxf1 {[%clk 0:01:11.1]}
27... Rf8+ {[%clk 0:02:28]} 28. Ke2 {[%clk 0:01:10.7]} 28... Rf7 {[%clk
0:02:29.1]} 29. c4 {[%clk 0:01:04.1]} 29... d4 {[%clk 0:02:28.7]} 30. Ne4 {[%clk
0:01:02.4]} 30... Bg4+ {[%clk 0:02:24.8]} 31. Kd2 {[%clk 0:00:28.1]} 31... Rf1
{[%clk 0:02:25]} 32. c3 {[%clk 0:00:29.7]} 32... dxc3+ {[%clk 0:02:23.8]} 33.
Kxc3 {[%clk 0:00:30]} 33... Rc1+ {[%clk 0:02:24]} 34. Kb3 {[%clk 0:00:26.8]}
34... Rb1+ {[%clk 0:02:20.3]} 35. Kc2 {[%clk 0:00:28]} 35... Rg1 {[%clk
0:02:20.6]} 36. Rd2 {[%clk 0:00:27.7]} 36... Bf5 {[%clk 0:02:21.2]} 37. Re2
{[%clk 0:00:22]} 37... Rxg2 {[%clk 0:02:19]} 0-1

[Event "*** Titled Tuesday Blitz"]
[Site "Chess.com"]
[Date "2018.06.05"]
[Round "2"]
[White "VNeimer"]
[Black "JozefKneht"]
[Result "1-0"]
[WhiteElo "2460"]
[BlackElo "2297"]
[TimeControl "180+2"]
[EndTime "13:22:43 PDT"]
[Termination "VNeimer won by checkmate"]

1. d4 {[%clk 0:03:01.9]} 1... d5 {[%clk 0:03:00.2]} 2. Nf3 {[%clk 0:03:02.9]}
2... Nf6 {[%clk 0:02:59.7]} 3. c4 {[%clk 0:03:02.6]} 3... c6 {[%clk 0:03:00.2]}
4. cxd5 {[%clk 0:03:02.1]} 4... cxd5 {[%clk 0:03:00.3]} 5. Nc3 {[%clk
0:03:03.4]} 5... Nc6 {[%clk 0:03:00.6]} 6. Bf4 {[%clk 0:03:04.1]} 6... Bf5
{[%clk 0:03:00.8]} 7. e3 {[%clk 0:03:01.7]} 7... e6 {[%clk 0:03:01.2]} 8. Qb3
{[%clk 0:02:56.8]} 8... Bb4 {[%clk 0:01:59.1]} 9. Bb5 {[%clk 0:02:38.2]} 9...
Bxc3+ {[%clk 0:00:30.4]} 10. bxc3 {[%clk 0:02:40.1]} 10... Qb6 {[%clk
0:00:19.9]} 11. Ne5 {[%clk 0:02:29.8]} 11... Rc8 {[%clk 0:00:19.1]} 12. O-O
{[%clk 0:02:17.1]} 12... O-O {[%clk 0:00:13.5]} 13. Bxc6 {[%clk 0:02:13.6]}
13... bxc6 {[%clk 0:00:12.2]} 14. f3 {[%clk 0:02:12.1]} 14... c5 {[%clk
0:00:11.3]} 15. Rf2 {[%clk 0:02:02.4]} 15... c4 {[%clk 0:00:10.6]} 16. Qxb6
{[%clk 0:02:00.9]} 16... axb6 {[%clk 0:00:12.5]} 17. Rb2 {[%clk 0:01:59.8]}
17... Rce8 {[%clk 0:00:03.4]} 18. a4 {[%clk 0:01:52.7]} 18... Ra8 {[%clk
0:00:02.6]} 19. Rxb6 {[%clk 0:01:50.5]} 19... Ra5 {[%clk 0:00:03.2]} 20. Nc6
{[%clk 0:01:46.9]} 20... Raa8 {[%clk 0:00:02.9]} 21. Ne7+ {[%clk 0:01:46.8]}
21... Kh8 {[%clk 0:00:03.9]} 22. Nxf5 {[%clk 0:01:48.7]} 22... exf5 {[%clk
0:00:05.2]} 23. a5 {[%clk 0:01:48.9]} 23... Rfd8 {[%clk 0:00:04]} 24. a6 {[%clk
0:01:49.4]} 24... Rd7 {[%clk 0:00:04.3]} 25. Rb8+ {[%clk 0:01:46.2]} 25... Rxb8
{[%clk 0:00:04.8]} 26. Bxb8 {[%clk 0:01:48.1]} 26... Ne8 {[%clk 0:00:04.3]} 27.
a7 {[%clk 0:01:49]} 27... Nc7 {[%clk 0:00:04.6]} 28. Bxc7 {[%clk 0:01:49.5]}
28... Rxc7 {[%clk 0:00:06.5]} 29. a8=Q+ {[%clk 0:01:50.6]} 29... Rc8 {[%clk
0:00:08.4]} 30. Kf2 {[%clk 0:01:49.2]} 30... Rg8 {[%clk 0:00:08]} 31. Qxg8+
{[%clk 0:01:47.4]} 31... Kxg8 {[%clk 0:00:09.9]} 32. Ra8# {[%clk 0:01:48.5]} 1-0

[Event "*** Titled Tuesday Blitz"]
[Site "Chess.com"]
[Date "2018.06.05"]
[Round "2"]
[White "sari07"]
[Black "Leo_C"]
[Result "1-0"]
[WhiteElo "2182"]
[BlackElo "2211"]
[TimeControl "180+2"]
[EndTime "13:23:13 PDT"]
[Termination "sari07 won by resignation"]

1. d4 {[%clk 0:03:01.9]} 1... d5 {[%clk 0:03:00.5]} 2. c4 {[%clk 0:03:02.7]}
2... c6 {[%clk 0:03:01.8]} 3. Nf3 {[%clk 0:03:01.3]} 3... Nf6 {[%clk 0:03:02.9]}
4. e3 {[%clk 0:02:59.4]} 4... e6 {[%clk 0:03:02]} 5. Nc3 {[%clk 0:02:58]} 5...
Nbd7 {[%clk 0:03:03]} 6. Qc2 {[%clk 0:02:56]} 6... Bd6 {[%clk 0:03:01.4]} 7. b3
{[%clk 0:02:50.8]} 7... O-O {[%clk 0:03:00.5]} 8. Bb2 {[%clk 0:02:50.2]} 8... e5
{[%clk 0:03:00.1]} 9. dxe5 {[%clk 0:02:50.2]} 9... Nxe5 {[%clk 0:03:00.7]} 10.
O-O-O {[%clk 0:02:51.7]} 10... Nxf3 {[%clk 0:02:52.7]} 11. gxf3 {[%clk
0:02:51.1]} 11... Be6 {[%clk 0:02:49.6]} 12. Rg1 {[%clk 0:02:43.8]} 12... Qe7
{[%clk 0:02:46.2]} 13. cxd5 {[%clk 0:02:28.3]} 13... cxd5 {[%clk 0:02:46.6]} 14.
Rxd5 {[%clk 0:02:12.2]} 14... Rac8 {[%clk 0:02:19.7]} 15. Rdg5 {[%clk
0:02:08.7]} 15... g6 {[%clk 0:02:19.6]} 16. Kb1 {[%clk 0:01:36]} 16... Bb4
{[%clk 0:02:07.5]} 17. Ne4 {[%clk 0:00:52.9]} 17... Nxe4 {[%clk 0:01:43.3]} 18.
Qxe4 {[%clk 0:00:50.4]} 18... f6 {[%clk 0:01:08.2]} 19. Rxg6+ {[%clk 0:00:21.2]}
19... hxg6 {[%clk 0:01:08.4]} 20. Rxg6+ {[%clk 0:00:23.1]} 20... Kf7 {[%clk
0:01:03.6]} 21. Bd3 {[%clk 0:00:20.1]} 21... f5 {[%clk 0:00:47.5]} 22. Rg7+
{[%clk 0:00:20.6]} 22... Ke8 {[%clk 0:00:44.9]} 23. Rxe7+ {[%clk 0:00:14.4]}
23... Kxe7 {[%clk 0:00:45.1]} 24. Qxb7+ {[%clk 0:00:15.2]} 24... Kd8 {[%clk
0:00:46.1]} 25. Qxb4 {[%clk 0:00:16]} 1-0